bitfinex-derivatives/quotes_ETHF0:USTF0_20250309
["timestamp","ask_amount","ask_price","bid_price","bid_amount"]
[1741489126331,2.2561,2183.5,2183.4,0.5497]
[1741489126727,2.2385,2183.6,2183.3,4.97931]
[1741489126928,2.2561,2183.5,2183.3,4.97931]
[1741489127137,2.2561,2183.5,2183.3,2.1498]
[1741489127938,2.2561,2183.5,2183.2,0.33523218]
[1741489128234,2.2561,2183.5,2183.1,4.85945]
[1741489128536,2.2561,2183.5,2183.1,4.6530407]
[1741489128738,8.01058,2183.5,2183.1,4.6530407]
[1741489129631,8.01058,2183.5,2183.0,0.54979]
[1741489130741,7.4609,2183.5,2182.8,4.4188]
[1741489131038,3.2078,2183.1,2182.8,4.4188]
[1741489131237,6.7694,2183.0,2182.8,2.2031]
[1741489131539,6.7694,2183.0,2182.7,0.54985]
[1741489131737,6.7694,2183.0,2182.6,2.7598486]
[1741489131936,6.7694,2183.0,2182.6,0.5567486]
[1741489132140,6.7694,2183.0,2182.6,0.0068686]
[1741489132541,6.7694,2183.0,2182.6,0.90223042]
[1741489132741,6.7694,2183.0,2182.6,0.0068686]
[1741489132934,0.54982,2182.9,2182.6,0.0068686]
[1741489133134,6.7694,2183.0,2182.6,0.0068686]
[1741489133336,7.31921,2183.0,2182.6,0.0068686]
[1741489133741,6.7694,2183.0,2182.6,0.0068686]
[1741489134044,3.2078,2182.7,2182.6,0.0068686]
[1741489134837,3.2078,2182.7,2182.6,0.5567686]
[1741489135039,9.9772,2183.0,2182.8,0.54984]
[1741489135337,9.9772,2183.0,2182.6,0.0068686]
[1741489135546,10.527,2183.0,2182.6,0.0068686]
[1741489136447,9.9772,2183.0,2182.6,0.0068686]
[1741489136641,10.52701,2183.0,2182.6,0.0068686]
[1741489137150,9.9772,2183.0,2182.6,0.0068686]
[1741489137348,3.2078,2182.7,2182.6,0.0068686]
[1741489137663,5.2058,2182.7,2182.6,0.0068686]
[1741489138646,5.75567,2182.7,2182.6,0.0068686]
[1741489139443,0.54996,2182.4,2182.0,3.55650769]
[1741489139642,2.2674,2182.3,2182.0,3.2078]
[1741489140246,2.0725,2182.2,2182.0,3.2078]
[1741489142453,16.00912702,2182.1,2182.0,3.2078]
[1741489145748,16.00912702,2182.1,2181.9,2.1482686]
[1741489146549,16.00912702,2182.1,2181.9,0.0068686]
[1741489148250,3.75785,2182.0,2181.4,3.75799]
[1741489148451,1.998,2181.9,2181.4,3.75799]
[1741489148752,4.2725,2181.8,2181.5,2.2327]
[1741489150452,4.2725,2181.8,2181.4,2.2765686]
[1741489150659,3.2078,2181.7,2181.4,2.2765686]
[1741489151058,3.2078,2181.7,2181.4,0.0068686]
[1741489152665,3.2078,2181.7,2181.5,0.55015]
[1741489153052,3.2078,2181.7,2181.5,2.0857]
[1741489153654,7.28371366,2181.9,2181.5,2.0857]
[1741489153855,7.28371366,2181.9,2181.6,2.1451]
[1741489154258,5.11871366,2181.9,2181.6,2.1451]
[1741489154457,5.11871366,2181.9,2181.7,0.55011]
[1741489154653,3.12071366,2181.9,2181.8,0.5501]
[1741489154955,3.12071366,2181.9,2181.7,3.7579]
[1741489155155,3.12071366,2181.9,2181.8,0.5501]
[1741489155358,3.12071366,2181.9,2181.7,3.7579]
[1741489156259,3.12071366,2181.9,2181.8,0.5501]
[1741489156459,3.12071366,2181.9,2181.7,3.75791]
[1741489156663,3.12071366,2181.9,2181.8,0.5501]
[1741489157664,3.12071366,2181.9,2181.7,3.7579]
[1741489158765,3.2078,2182.0,2181.8,0.5501]
[1741489159560,3.2078,2182.0,2181.9,0.55007]
[1741489160062,16.00912702,2182.1,2181.7,3.2078]
[1741489160265,12.60885262,2182.1,2182.0,0.55005]
[1741489160465,11.24824631,2182.1,2182.0,3.75785]
[1741489160962,7.59654631,2182.1,2182.0,3.75785]
[1741489161268,0.0068686,2182.3,2182.0,5.2058]
[1741489161464,0.0068686,2182.3,2182.2,0.55]
[1741489163067,0.0068686,2182.3,2182.1,2.573]
[1741489163268,0.0068686,2182.3,2182.2,0.55]
[1741489163469,0.0068686,2182.3,2182.2,2.6805]
[1741489165670,0.0068686,2182.3,2182.2,4.664]
[1741489180370,0.0068686,2182.3,2182.2,2.6805]
[1741489181681,0.0068686,2182.3,2182.2,0.55]
[1741489192673,0.0068686,2182.3,2182.1,0.55001]
[1741489192873,0.0068686,2182.3,2182.0,5.60313792]
[1741489193277,0.0068686,2182.3,2182.1,0.55]
[1741489193479,0.0068686,2182.3,2182.0,4.10097792]
[1741489193677,0.0068686,2182.3,2182.1,0.55002]
[1741489194281,0.0068686,2182.3,2182.2,0.55]
[1741489215499,8.9641,2182.8,2182.2,0.55]
[1741489215500,3.2078,2182.8,2182.7,0.54987]
[1741489215799,19.60180393,2182.9,2182.8,0.54985]
[1741489216201,16.27290133,2182.9,2182.8,0.54985]
[1741489216390,16.04892583,2182.9,2182.8,2.54685]
[1741489217297,2.0403,2183.4,2182.8,1.997]
[1741489217600,2.0403,2183.4,2183.3,0.54972]
[1741489219996,3.2078,2183.5,2183.4,0.5497]
[1741489220695,5.0894,2183.5,2183.4,0.5497]
[1741489220902,0.0068686,2183.6,2183.5,0.54967]
[1741489222997,0.0068686,2183.6,2183.5,2.57087]
[1741489224996,3.2078,2184.1,2183.5,2.57087]
[1741489225201,3.6891,2184.2,2184.1,0.54952]
[1741489225798,1.8824,2184.2,2184.1,0.54952]
[1741489227604,1.8576686,2184.4,2184.3,0.54947]
[1741489227806,3.7705686,2184.4,2184.3,0.54947]
[1741489229700,3.7705686,2184.4,2184.2,0.54949]
[1741489229905,3.7705686,2184.4,2184.0,5.38162762]
[1741489230405,3.7705686,2184.4,2184.3,0.54947]
[1741489234113,3.7705686,2184.4,2184.2,0.54947]
[1741489234515,3.7705686,2184.4,2184.0,5.38162762]
[1741489234814,3.7705686,2184.4,2184.3,0.54947]
[1741489235422,3.7705686,2184.4,2184.2,0.54948]
[1741489235924,3.7705686,2184.4,2184.3,0.54947]
[1741489239532,0.0068686,2184.4,2184.3,0.54947]
[1741489239824,3.5695,2184.7,2184.6,0.54939]
[1741489242125,3.5695,2184.7,2184.4,1.7538]
[1741489242323,3.5695,2184.7,2184.5,0.54941]
[1741489242826,3.5695,2184.7,2184.2,0.54949]
[1741489243128,1.8483,2184.6,2184.3,0.54947]
[1741489243325,1.8483,2184.6,2184.0,26.10502762]
[1741489243326,3.2078,2184.5,2184.1,0.54951]
[1741489243630,3.2078,2184.5,2184.0,26.10502762]
[1741489243831,3.2078,2184.5,2184.2,0.54949]
[1741489244729,3.2078,2184.5,2184.3,0.54947]
[1741489245429,3.2078,2184.5,2184.3,0.54946]
[1741489246224,3.2078,2184.5,2184.2,0.54948]
[1741489246424,3.2078,2184.5,2184.3,0.54946]
[1741489247629,3.2078,2184.5,2184.0,24.11002762]
[1741489248025,3.2078,2184.5,2184.3,0.54945]
[1741489248633,3.2078,2184.5,2184.0,24.11002762]
[1741489248835,6.32851366,2184.5,2184.0,20.90222762]
[1741489249130,0.54954,2184.0,2183.9,0.0068686]
[1741489249334,2.54354,2184.0,2183.5,0.54966]
[1741489249533,3.2078,2183.7,2183.2,3.8055]
[1741489250037,3.2078,2183.7,2183.4,0.54969]
[1741489250228,3.2078,2183.7,2183.3,0.54971]
[1741489250432,3.2078,2183.7,2183.4,0.54968]
[1741489251133,3.2078,2183.7,2183.3,0.5565686]
[1741489251539,3.2078,2183.7,2183.4,0.54968]
[1741489252331,3.2078,2183.7,2183.3,0.5565686]
[1741489252528,3.2078,2183.7,2183.3,0.0068686]
[1741489253139,3.2078,2183.7,2183.3,0.5565786]
[1741489253437,3.2078,2183.7,2183.3,0.0068686]
[1741489253836,6.32851366,2183.7,2183.3,0.5565886]
[1741489255731,6.32851366,2183.7,2183.4,0.54969]
[1741489256135,6.32851366,2183.7,2183.3,0.5565786]
[1741489257936,6.32851366,2183.7,2183.4,0.54969]
[1741489258136,6.32851366,2183.7,2183.6,0.54965]
[1741489258336,3.12071366,2183.7,2183.6,0.54965]
[1741489259443,3.12071366,2183.7,2183.3,3.7643686]
[1741489259444,6.32851366,2183.7,2183.3,3.7643686]
[1741489259842,3.2078,2183.7,2183.3,3.7643686]
[1741489260136,3.2078,2183.7,2183.3,3.2146686]
[1741489260438,3.12758226,2183.8,2183.3,4.5889286]
[1741489260636,3.12758226,2183.8,2183.7,0.54962]
[1741489260832,0.0068686,2183.8,2183.7,0.54962]
[1741489261042,0.0068686,2183.8,2183.4,1.7778]
[1741489261043,0.0068686,2183.8,2183.6,0.54964]
[1741489261245,0.0068686,2183.8,2183.5,0.54966]
[1741489261446,0.0068686,2183.8,2183.6,1.7977]
[1741489261647,0.0068686,2183.8,2183.4,3.7728]
[1741489261939,0.0068686,2183.8,2183.6,0.54963]
[1741489263145,0.0068686,2183.8,2183.4,5.5705]
[1741489263348,0.0068686,2183.8,2183.7,0.54962]
[1741489265345,0.0068686,2183.8,2183.4,5.5705]
[1741489265544,0.0068686,2183.8,2183.6,0.54963]
[1741489265744,0.0068686,2183.8,2183.7,0.54962]
[1741489266649,0.0068686,2183.8,2183.6,0.54963]
[1741489266946,0.0068686,2183.8,2183.5,0.54965]
[1741489267442,0.0068686,2183.8,2183.4,5.5705]
[1741489267443,0.0068686,2183.8,2183.6,0.54963]
[1741489267647,0.0068686,2183.8,2183.4,2.34739]
[1741489267842,3.2078,2183.6,2183.3,3.2146686]
[1741489268147,3.2078,2183.6,2183.3,0.0068686]
[1741489268344,3.95199,2183.5,2183.0,20.553]
[1741489268544,3.2078,2183.2,2182.7,3.2078]
[1741489268745,3.3838,2183.1,2182.5,2.36751]
[1741489269051,3.2078,2182.9,2182.8,0.54985]
[1741489269346,3.2078,2182.9,2182.6,0.54988]
[1741489269546,3.2078,2182.9,2182.6,0.0068686]
[1741489269748,3.2078,2182.9,2182.8,0.54985]
[1741489269941,5.1567,2183.1,2182.8,0.54985]
[1741489270450,5.1567,2183.1,2182.8,0.54983]
[1741489271354,5.1567,2183.1,2182.7,1.7696]
[1741489272252,5.1567,2183.1,2182.7,2.31946]
[1741489273651,5.1567,2183.1,2182.7,1.7696]
[1741489273849,5.1567,2183.1,2182.8,0.54984]
[1741489274046,3.4388,2183.1,2182.9,0.54981]
[1741489274255,3.4388,2183.1,2182.7,1.7696]
[1741489274549,3.4388,2183.1,2182.6,0.0068686]
[1741489274744,3.4388,2183.1,2182.6,0.5567486]
[1741489274952,3.4388,2183.1,2182.7,0.54987]
[1741489275144,3.4388,2183.1,2182.6,0.0068686]
[1741489275145,6.55951366,2183.1,2182.6,0.5567486]
[1741489275344,3.2078,2182.9,2182.6,0.5567686]
[1741489275652,3.2078,2182.9,2182.6,0.0068686]
[1741489276845,3.2078,2182.9,2182.6,0.5567586]
[1741489277046,3.2078,2182.9,2182.6,0.5567486]
[1741489277547,3.2078,2182.9,2182.6,0.0068686]
[1741489277751,3.2078,2182.9,2182.6,0.5567586]
[1741489277942,3.2078,2182.9,2182.6,0.0068686]
[1741489280341,1.995,2182.8,2182.6,0.0068686]
[1741489280543,3.435,2182.7,2182.6,0.0068686]
[1741489281643,7.98487,2182.7,2182.2,24.31578]
[1741489281946,3.2078,2182.5,2182.2,20.558]
[1741489282651,3.2078,2182.5,2182.2,21.10799]
[1741489283746,3.2078,2182.5,2182.2,20.558]
[1741489285240,8.32351366,2182.5,2182.1,0.0068686]
[1741489285446,3.2078,2182.2,2182.1,0.0068686]
[1741489285850,6.5149,2182.2,2182.1,0.0068686]
[1741489286648,7.0649,2182.2,2182.1,0.0068686]
[1741489287155,6.5149,2182.2,2182.1,0.0068686]
[1741489287546,7.0649,2182.2,2182.1,0.0068686]
[1741489287749,8.8017,2182.2,2182.1,0.0068686]
[1741489288648,8.2517,2182.2,2182.1,0.0068686]
[1741489289048,0.55008,2181.9,2181.4,2.25048]
[1741489289353,1.6802,2181.8,2181.5,0.55017]
[1741489289551,1.6802,2181.8,2181.4,3.85039]
[1741489289852,1.6802,2181.8,2181.4,3.3002]
[1741489290252,1.6802,2181.8,2181.4,3.3070686]
[1741489290950,3.88011,2181.8,2181.4,3.3070686]
[1741489291149,3.33,2181.8,2181.4,3.3070686]
[1741489292148,1.6613,2181.7,2181.4,3.3070686]
[1741489292755,1.6613,2181.7,2181.4,3.8572586]
[1741489293254,1.6613,2181.7,2181.4,3.3070686]
[1741489297356,1.6613,2181.7,2181.4,1.6067686]
[1741489297857,1.6613,2181.7,2181.4,2.1569586]
[1741489299451,6.32851366,2181.9,2181.4,2.9822486]
[1741489299752,1.996,2182.1,2181.5,2.97611]
[1741489299951,1.996,2182.1,2181.9,0.55005]
[1741489300162,1.996,2182.1,2182.0,3.3112]
[1741489300561,1.996,2182.1,2181.5,4.8085]
[1741489300862,1.996,2182.1,2181.6,3.3112]
[1741489301362,3.2078,2182.2,2181.6,4.68656]
[1741489301666,3.2078,2182.5,2181.9,3.2078]
[1741489301959,3.2078,2182.5,2182.2,0.55]
[1741489302160,3.2078,2182.5,2182.3,1.6374]
[1741489302564,2.0028686,2182.6,2182.4,1.5931]
[1741489303855,2.0028686,2182.6,2182.4,2.14304]
[1741489304053,2.0028686,2182.6,2182.4,1.5931]
[1741489304256,2.0028686,2182.6,2182.5,0.54992]
[1741489304764,0.0068686,2182.6,2182.5,0.54992]
[1741489304956,0.0068686,2182.6,2182.5,2.17842]
[1741489306668,0.0068686,2182.6,2182.4,1.5931]
[1741489308763,0.0068686,2182.6,2182.4,2.489965]
[1741489309275,0.0068686,2182.6,2182.4,2.14304]
[1741489309667,0.0068686,2182.6,2182.3,1.6374]
[1741489310069,1.7464686,2182.6,2182.3,1.6374]
[1741489310267,0.54993,2182.5,2182.2,3.2078]
[1741489310770,0.54996,2182.4,2182.0,1.6714]
[1741489310976,0.54995,2182.4,2181.9,1.6448]
[1741489311278,3.67066366,2182.4,2181.9,2.19487]
[1741489311668,3.2078,2182.2,2181.9,2.19487]
[1741489311869,5.2028,2182.2,2182.0,0.55004]
[1741489312567,5.2028,2182.2,2181.9,1.6448]
[1741489312767,5.2028,2182.2,2181.9,2.19486]
[1741489313366,1.995,2182.2,2182.0,0.55004]
[1741489313572,1.995,2182.3,2182.0,0.55004]
[1741489313873,1.995,2182.3,2181.9,1.6448]
[1741489314884,1.995,2182.3,2181.9,2.19487]
[1741489315781,1.995,2182.3,2181.9,2.19486]
[1741489315977,1.995,2182.3,2182.0,0.55004]
[1741489316175,1.995,2182.3,2182.1,2.26651]
[1741489316482,1.995,2182.3,2182.2,0.55]
[1741489316782,3.2078,2182.5,2182.4,0.54995]
[1741489317084,0.0068686,2182.6,2182.4,0.54995]
[1741489317384,0.0068686,2182.6,2182.5,1.5771]
[1741489317575,0.0068686,2182.6,2182.5,3.2513]
[1741489318482,0.0068686,2182.6,2182.3,0.54995]
[1741489318681,0.0068686,2182.6,2182.2,3.3785]
[1741489318872,1.5596686,2182.6,2182.2,6.5863]
[1741489319180,4.7674686,2182.6,2181.9,3.2078]
[1741489319382,4.7674686,2182.6,2182.1,0.55002]
[1741489320076,4.7674686,2182.6,2181.9,3.2078]
[1741489320282,4.7674686,2182.6,2182.0,1.5515]
[1741489320674,4.7674686,2182.6,2182.2,0.54998]
[1741489320979,4.7674686,2182.6,2182.0,1.5515]
[1741489320980,4.7674686,2182.6,2182.4,0.54993]
[1741489321182,1.5596686,2182.6,2182.4,0.54993]
[1741489321784,1.5596686,2182.6,2182.3,2.12025]
[1741489323489,4.7674686,2182.6,2182.3,1.5703]
[1741489327083,1.5596686,2182.6,2182.3,1.5703]
[1741489327282,4.7674686,2182.6,2182.3,1.5703]
[1741489328780,4.7674686,2182.6,2181.8,0.55009]
[1741489329087,3.2078,2182.2,2181.9,0.55006]
[1741489329286,1.7002,2182.1,2181.9,0.55006]
[1741489329480,3.377,2182.1,2181.9,0.55006]
[1741489329681,3.377,2182.1,2181.8,0.55009]
[1741489329988,3.377,2182.1,2181.7,3.2078]
[1741489330388,3.377,2182.1,2181.8,0.55008]
[1741489330883,3.377,2182.1,2181.7,3.2078]
[1741489331183,3.377,2182.1,2181.7,0.55011]
[1741489331384,3.377,2182.1,2181.6,3.84173]
[1741489331891,3.92703,2182.1,2181.6,3.2916]
[1741489332194,3.2078,2181.9,2181.6,3.2916]
[1741489332684,3.2078,2181.9,2181.4,0.5570586]
[1741489332889,3.2078,2181.9,2181.4,2.1103586]
[1741489332890,1.6583,2181.8,2181.4,2.1103586]
[1741489333187,1.6583,2181.8,2181.4,2.1103486]
[1741489333381,1.645,2181.7,2181.4,2.1103486]
[1741489334182,1.645,2181.7,2181.4,1.5601686]
[1741489334684,1.645,2181.7,2181.4,2.1103586]
[1741489335382,1.645,2181.7,2181.4,1.5601686]
[1741489335781,1.645,2181.7,2181.4,2.1103586]
[1741489335985,1.645,2181.7,2181.4,2.1103686]
[1741489336384,1.645,2181.7,2181.4,1.5601686]
[1741489336589,3.2078,2181.5,2181.4,0.0068686]
[1741489340186,5.2028,2181.5,2181.4,0.0068686]
[1741489342592,5.2028,2181.5,2181.4,0.5570686]
[1741489342794,1.995,2181.5,2181.4,0.5570686]
[1741489342994,1.995,2181.5,2181.4,0.0068686]
[1741489345393,5.75297,2181.5,2181.4,0.0068686]
[1741489345701,5.2028,2181.5,2181.4,0.0068686]
[1741489352200,5.2028,2181.5,2181.0,3.4163]
[1741489352407,1.491,2181.4,2181.0,3.4163]
[1741489352798,1.679,2181.3,2181.0,3.4163]
[1741489353005,1.679,2181.3,2181.0,3.96659]
[1741489353202,3.2078,2181.2,2180.8,0.01272894]
[1741489353405,0.55035,2180.8,2180.4,3.1661]
[1741489353607,3.2078,2180.9,2180.4,3.71654]
[1741489354005,4.7643,2180.9,2180.4,3.1661]
[1741489354207,3.2078,2180.9,2180.8,0.55035]
[1741489354503,3.2078,2180.9,2180.4,3.53605421]
[1741489354697,3.12071366,2181.0,2180.6,0.55038]
[1741489354898,3.12071366,2181.0,2180.7,1.5871]
[1741489355099,3.12071366,2181.0,2180.8,1.6093]
[1741489355300,3.12071366,2181.0,2180.8,3.3011]
[1741489355908,3.2078,2180.9,2180.8,3.3011]
[1741489356113,3.12071366,2181.0,2180.8,3.3011]
[1741489356407,3.12071366,2181.0,2180.3,5.54681112]
[1741489356706,1.4981,2180.9,2180.5,3.3011]
[1741489357709,4.7059,2180.9,2180.5,3.3011]
[1741489358411,4.7059,2180.9,2180.5,3.85153]
[1741489358611,4.7059,2180.9,2180.5,3.3011]
[1741489359105,1.5906,2180.8,2180.5,3.3011]
[1741489359912,3.2078,2180.6,2180.0,3.2184456]
[1741489360209,3.5298,2180.7,2180.0,0.0106456]
[1741489360210,3.2078,2180.3,2180.0,0.0106456]
[1741489360410,5.2038,2180.3,2180.0,3.7689856]
[1741489360603,3.2078,2180.3,2180.2,0.5505]
[1741489360801,1.996,2180.6,2180.1,4.7848]
[1741489361011,1.996,2180.9,2180.4,3.2078]
[1741489361311,5.2038,2181.1,2180.7,0.55038]
[1741489361510,5.2038,2181.1,2180.8,1.5978]
[1741489361704,5.2038,2181.1,2180.8,2.14815]
[1741489361904,5.2038,2181.1,2180.9,1.5566]
[1741489362723,1.996,2181.1,2180.9,2.10691]
[1741489363010,3.2216,2181.3,2181.0,0.5503]
[1741489363511,1.5338,2181.3,2180.9,3.1923]
[1741489364104,5.2106686,2181.4,2181.1,0.55027]
[1741489364306,5.2106686,2181.4,2181.2,1.6891]
[1741489365920,5.2106686,2181.4,2180.9,3.1923]
[1741489366405,5.2106686,2181.4,2180.9,3.74262]
[1741489368311,5.2106686,2181.4,2180.9,3.1923]
[1741489368512,5.2106686,2181.4,2180.9,3.74262]
[1741489369607,5.2106686,2181.4,2181.0,0.55029]
[1741489369811,8.33138226,2181.4,2180.9,3.74261]
[1741489370115,0.55024,2181.3,2180.9,3.1923]
[1741489370313,8.88159226,2181.4,2180.9,3.74262]
[1741489370511,1.606,2181.2,2180.9,3.74262]
[1741489371315,1.606,2181.2,2181.0,0.5503]
[1741489371503,1.606,2181.2,2180.9,3.1923]
[1741489371708,6.33538226,2181.4,2181.0,3.2078]
[1741489372110,6.33538226,2181.4,2181.2,0.55025]
[1741489372310,6.33538226,2181.4,2181.0,3.2078]
[1741489372614,1.6271,2181.3,2181.0,0.5503]
[1741489375315,1.6271,2181.3,2181.0,0.55029]
[1741489375913,3.2146686,2181.4,2180.9,3.1923]
[1741489376215,3.2146686,2181.4,2181.1,0.55026]
[1741489376415,3.2146686,2181.4,2181.2,1.5639]
[1741489378712,3.2146686,2181.4,2181.2,2.11414]
[1741489379316,3.2146686,2181.4,2181.2,1.5639]
[1741489380414,3.2146686,2181.4,2180.9,2.10692]
[1741489380622,3.7648786,2181.4,2180.7,8.2567]
[1741489380820,3.2146686,2181.4,2180.7,8.2567]
[1741489381418,3.2146686,2181.4,2180.9,0.5503]
[1741489381615,6.88558226,2181.4,2180.9,0.55031]
[1741489381816,6.33538226,2181.4,2180.7,8.2567]
[1741489382224,6.88559226,2181.4,2180.7,8.2567]
[1741489382424,6.88559226,2181.4,2180.9,0.55032]
[1741489383227,3.2078,2181.1,2180.4,3.2078]
[1741489383534,3.2078,2180.5,2180.0,20.5946456]
[1741489383720,7.20586,2180.4,2180.0,0.0106456]
[1741489384035,10.32657366,2180.4,2180.0,0.0106456]
[1741489384325,9.77611366,2180.4,2180.2,0.55049]
[1741489384524,9.77611366,2180.4,2180.1,0.55052]
[1741489384929,9.77611366,2180.4,2180.0,0.0106456]
[1741489385123,9.77611366,2180.4,2180.0,2.0834856]
[1741489385334,10.32657366,2180.4,2180.0,0.0106456]
[1741489386234,0.55049,2180.3,2180.0,0.0106456]
[1741489386630,10.32658366,2180.4,2180.0,0.0106456]
[1741489386936,0.55048,2180.3,2180.0,0.0106456]
[1741489387129,0.55053,2180.1,2180.0,0.0106456]
[1741489387330,1.37654,2179.8,2178.4,3.2078]
[1741489387632,3.2078,2179.3,2178.4,3.2078]
[1741489387829,12.67071366,2179.7,2178.4,3.2078]
[1741489387830,5.0219,2179.7,2179.3,0.55071]
[1741489388031,5.0219,2179.7,2179.4,1.5116]
[1741489388336,5.0287686,2179.7,2178.9,5.2318]
[1741489388527,3.2078,2179.5,2179.0,3.05]
[1741489388834,3.2078,2179.5,2179.2,0.55075]
[1741489389231,3.2078,2179.5,2178.9,3.2078]
[1741489390435,3.2078,2179.5,2179.0,2.045]
[1741489390635,2.0298686,2179.7,2179.5,0.55066]
[1741489390937,0.0068686,2179.7,2179.3,3.2078]
[1741489391141,0.0068686,2179.7,2179.6,0.55065]
[1741489391330,0.0068686,2179.7,2179.4,2.935]
[1741489391533,0.0068686,2179.7,2179.4,1.4288]
[1741489391835,0.0068686,2179.7,2179.1,1.5062]
[1741489392444,2.048,2179.6,2179.1,1.5062]
[1741489392644,3.2078,2179.5,2179.0,3.2078]
[1741489392836,4.7023,2179.5,2179.0,3.2078]
[1741489394041,5.25299,2179.5,2179.0,3.2078]
[1741489394240,4.7023,2179.5,2178.8,2.05705]
[1741489394443,7.82301366,2179.5,2178.8,2.05705]
[1741489394643,7.82301366,2179.5,2178.8,4.714]
[1741489394938,7.82301366,2179.5,2178.9,0.55081]
[1741489395347,8.37370366,2179.5,2178.8,5.26485]
[1741489395541,7.82301366,2179.5,2178.8,3.2078]
[1741489395742,7.82301366,2179.5,2178.7,1.4288]
[1741489395743,3.2078,2178.9,2178.2,3.2078]
[1741489395939,2.9592,2178.8,2178.2,4.6609]
[1741489396141,2.9592,2178.8,2178.3,0.55098]
[1741489396341,3.51007,2178.8,2178.2,5.2119]
[1741489396642,2.9592,2178.8,2178.2,4.6609]
[1741489396839,2.9592,2178.8,2178.3,0.55097]
[1741489397041,2.9592,2178.8,2178.2,4.6609]
[1741489397445,6.07991366,2178.8,2178.2,3.2078]
[1741489397849,3.75872,2178.6,2178.2,3.2078]
[1741489398145,2.047,2178.5,2178.2,3.75879]
[1741489398449,2.047,2178.5,2178.3,0.55097]
[1741489398651,0.00688531,2178.6,2178.5,0.55093]
[1741489399044,0.00688531,2178.6,2178.2,3.2078]
[1741489399349,0.00688531,2178.6,2178.4,0.55094]
[1741489399549,0.00688531,2178.6,2178.2,3.2078]
[1741489399941,0.00688531,2178.6,2178.5,3.75873]
[1741489400144,2.071,2179.4,2179.1,0.55077]
[1741489400441,2.071,2179.4,2179.0,0.5508]
[1741489400946,3.5241,2179.5,2179.4,0.5507]
[1741489401144,3.2078,2179.6,2179.5,0.55068]
[1741489401548,0.00688531,2179.7,2179.2,0.00688531]
[1741489401739,0.00688531,2179.7,2179.3,3.2078]
[1741489401937,0.00688531,2179.7,2179.6,0.55065]
[1741489402144,0.07028531,2179.7,2179.6,3.75845]
[1741489402648,0.07028531,2179.7,2179.6,0.55065]
[1741489403552,0.07028531,2179.7,2179.5,0.55066]
[1741489403753,0.07028531,2179.7,2179.6,0.55065]
[1741489404240,0.07028531,2179.7,2179.6,3.75845]
[1741489406756,0.07028531,2179.7,2179.6,3.2078]
[1741489408355,0.00688531,2179.7,2179.6,3.2078]
[1741489408856,0.00688531,2179.7,2179.6,3.75845]
[1741489409247,0.00688531,2179.7,2179.6,3.2078]
[1741489410156,0.00688531,2179.7,2179.2,1.70152531]
[1741489410450,3.2078,2179.5,2179.2,1.15078531]
[1741489410657,2.07,2179.4,2179.2,1.70153531]
[1741489411256,2.07,2179.4,2179.3,0.55073]
[1741489412257,2.07,2179.4,2179.2,1.15078531]
[1741489412460,2.07,2179.4,2179.2,1.70152531]
[1741489413155,2.07,2179.4,2179.2,1.15078531]
[1741489413355,9.19071366,2179.4,2178.5,3.2078]
[1741489413560,3.2078,2179.0,2178.5,0.55091]
[1741489413859,3.5487,2178.9,2178.2,6.1214]
[1741489414053,6.66941366,2178.9,2178.8,0.55086]
[1741489414264,2.077,2178.9,2178.8,0.55086]
[1741489414467,3.2078,2179.0,2178.9,0.55083]
[1741489414655,3.12071366,2179.2,2179.0,0.5508]
[1741489415058,3.12071366,2179.2,2178.8,3.2078]
[1741489415258,3.12071366,2179.2,2179.0,0.5508]
[1741489415461,3.5783,2179.3,2178.9,2.9102]
[1741489416060,3.5783,2179.3,2178.9,0.0291]
[1741489416267,4.12903,2179.3,2178.9,0.0291]
[1741489416453,3.5783,2179.3,2178.9,0.0291]
[1741489416765,3.5783,2179.3,2178.9,0.57992]
[1741489416951,3.5783,2179.3,2178.9,0.0291]
[1741489417672,3.5783,2179.3,2178.9,0.57993]
[1741489417961,1.5003,2179.3,2178.9,0.57991]
[1741489418157,1.5003,2179.3,2179.2,0.55075]
[1741489418357,2.08988531,2179.7,2179.1,3.2078]
[1741489418563,3.2078,2179.6,2179.2,1.4285]
[1741489419062,3.2078,2179.3,2178.9,0.0291]
[1741489419267,5.2958,2179.3,2178.9,0.57993]
[1741489419567,5.2958,2179.3,2179.0,0.5508]
[1741489419862,5.2958,2179.3,2178.9,0.57992]
[1741489420557,5.2958,2179.3,2178.9,0.0291]
[1741489420865,5.2958,2179.3,2179.0,0.5508]
[1741489421060,5.2958,2179.3,2178.9,0.0291]
[1741489421365,5.2958,2179.3,2178.9,0.57992]
[1741489422064,5.2958,2179.3,2178.9,0.0291]
[1741489422260,3.2078,2179.0,2178.9,0.0291]
[1741489423566,4.6437,2179.0,2178.9,0.0291]
[1741489425366,4.6437,2179.0,2178.9,0.57993]
[1741489425667,5.2918,2179.0,2178.9,0.57993]
[1741489425863,3.2078,2179.3,2179.2,0.55075]
[1741489426265,3.12071366,2179.4,2179.0,2.7353]
[1741489426569,3.12071366,2179.4,2179.3,0.55073]
[1741489426772,5.2948,2179.8,2179.6,0.55065]
[1741489427763,5.2948,2179.8,2179.1,4.58472]
[1741489427959,5.2948,2179.8,2179.1,3.2078]
[1741489428164,5.2948,2179.8,2179.2,0.55074]
[1741489428570,5.2948,2179.8,2179.3,0.55073]
[1741489428770,3.2078,2179.5,2179.0,4.8223]
[1741489428971,1.4243,2179.4,2179.0,2.7353]
[1741489429166,1.97502,2179.4,2178.7,3.2078]
[1741489429366,3.2078,2179.1,2178.7,3.2078]
[1741489429571,1.4243,2179.0,2178.7,3.2078]
[1741489429773,1.4243,2179.0,2178.7,3.75867]
[1741489430272,1.4243,2179.0,2178.4,1.4409]
[1741489430273,4.54501366,2179.0,2178.4,1.4409]
[1741489430566,3.2078,2178.8,2178.3,3.2078]
[1741489430963,3.2078,2178.8,2178.5,0.55092]